fUST/lending_fUST_20241007
["ID","MTS","AMOUNT","RATE_DAILY","PERIOD"]
[339998936,1728306428800,-20754.2440731,0.00024457,3]
[339998937,1728306428824,-500.0,0.00024458,2]
[339998938,1728306428852,-500.0,0.00024458,2]
[339998939,1728306428875,-170.07215029,0.00024458,2]
[339998940,1728306428899,-3577.50154576,0.00024458,3]
[339998941,1728306428923,-20754.2440731,0.00024458,3]
[339998942,1728306428946,-3577.50154576,0.00024459,3]
[339998943,1728306428973,-603.965754,0.00024459,7]
[339998944,1728306428995,-603.965754,0.00024459,7]
[339998945,1728306429019,-151.0,0.00024459,7]
[339998946,1728306429041,-959.667692,0.00024459,7]
[339998947,1728306429065,-151.0,0.00024459,7]
[339998948,1728306429086,-959.667692,0.00024459,7]
[339998949,1728306429110,-151.0,0.00024459,7]
[339998950,1728306429131,-151.0,0.00024459,7]
[339998951,1728306429153,-151.0,0.00024459,7]
[339998952,1728306429175,-151.0,0.00024459,7]
[339998953,1728306429199,-810.030389,0.00024459,7]
[339998954,1728306429220,-810.030389,0.00024459,7]
[339998955,1728306429244,-303.484483,0.00024459,7]
[339998956,1728306429266,-303.484483,0.00024459,7]
[339998957,1728306429289,-151.0,0.00024459,7]
[339998958,1728306429311,-151.0,0.00024459,7]
[339998959,1728306429333,-151.0,0.00024459,7]
[339998960,1728306429357,-219.690443,0.00024459,7]
[339998961,1728306429379,-219.690443,0.00024459,7]
[339998962,1728306429402,-312.920019,0.00024459,7]
[339998963,1728306429425,-151.0,0.00024459,7]
[339998964,1728306429448,-3577.50154576,0.00024459,3]
[339998965,1728306429472,-20754.2440731,0.00024459,3]
[339998966,1728306429494,-5665.78,0.0002446,120]
[339998967,1728306429517,-3577.50154576,0.00024463,3]
[339998968,1728306429541,-20754.2440731,0.00024463,3]
[339998969,1728306429565,-603.965754,0.00024465,7]
[339998970,1728306429588,-603.965754,0.00024465,7]
[339998971,1728306429611,-603.965754,0.00024465,7]
[339998972,1728306429636,-603.965754,0.00024465,7]
[339998973,1728306429660,-151.0,0.00024465,7]
[339998974,1728306429682,-151.0,0.00024465,7]
[339998975,1728306429704,-959.667692,0.00024465,7]
[339998976,1728306429724,-959.667692,0.00024465,7]
[339998977,1728306429745,-151.0,0.00024465,7]
[339998978,1728306429768,-151.0,0.00024465,7]
[339998979,1728306429791,-959.667692,0.00024465,7]
[339998980,1728306429885,-959.667692,0.00024465,7]
[339998981,1728306429908,-151.0,0.00024465,7]
[339998982,1728306429930,-151.0,0.00024465,7]
[339998983,1728306429954,-151.0,0.00024465,7]
[339998984,1728306429979,-151.0,0.00024465,7]
[339998985,1728306430001,-151.0,0.00024465,7]
[339998986,1728306430024,-151.0,0.00024465,7]
[339998987,1728306430047,-151.0,0.00024465,7]
[339998988,1728306430068,-151.0,0.00024465,7]
[339998989,1728306430091,-810.030389,0.00024465,7]
[339998990,1728306430112,-810.030389,0.00024465,7]
[339998991,1728306430136,-810.030389,0.00024465,7]
[339998992,1728306430157,-810.030389,0.00024465,7]
[339998993,1728306430181,-303.484483,0.00024465,7]
[339998994,1728306430204,-303.484483,0.00024465,7]
[339998995,1728306430228,-303.484483,0.00024465,7]
[339998996,1728306430251,-303.484483,0.00024465,7]
[339998997,1728306430274,-500.0,0.00024465,2]
[339998998,1728306430297,-257.92881719,0.00024465,2]
[339998999,1728306430320,-271.35040321,0.00024465,2]
[339999000,1728306430345,-500.0,0.00024465,2]
[339999001,1728306430369,-500.0,0.00024465,2]
[339999002,1728306430389,-500.0,0.00024465,2]
[339999003,1728306430412,-500.0,0.00024465,2]
[339999004,1728306430432,-500.0,0.00024465,2]
[339999005,1728306430454,-500.0,0.00024465,2]
[339999006,1728306430475,-159.3082317,0.00024465,2]
[339999007,1728306430572,-340.6917683,0.00024465,2]
[339999008,1728306430594,-437.88292177,0.00024465,2]
[339999009,1728306430616,-237.7963622,0.00024465,2]
[339999010,1728306430637,-500.0,0.00024465,2]
[339999011,1728306430658,-500.0,0.00024465,2]
[339999012,1728306430680,-500.0,0.00024465,2]
[339999013,1728306430701,-500.0,0.00024465,2]
[339999014,1728306430722,-500.0,0.00024465,2]
[339999015,1728306430742,-500.0,0.00024465,2]
[339999016,1728306430762,-500.0,0.00024465,2]
[339999017,1728306430783,-500.0,0.00024465,2]
[339999018,1728306430804,-500.0,0.00024465,2]
[339999019,1728306430825,-500.0,0.00024465,2]
[339999020,1728306430845,-151.0,0.00024465,7]
[339999021,1728306430866,-151.0,0.00024465,7]
[339999022,1728306430886,-151.0,0.00024465,7]
[339999023,1728306430907,-151.0,0.00024465,7]
[339999024,1728306430926,-219.690443,0.00024465,7]
[339999025,1728306430946,-219.690443,0.00024465,7]
[339999026,1728306430966,-219.690443,0.00024465,7]
[339999027,1728306430992,-219.690443,0.00024465,7]
[339999028,1728306431013,-500.0,0.00024465,2]
[339999029,1728306431128,-500.0,0.00024465,2]
[339999030,1728306431151,-500.0,0.00024465,2]
[339999031,1728306431172,-500.0,0.00024465,2]
[339999032,1728306431193,-503.14287326,0.00024465,2]
[339999033,1728306431213,-312.920019,0.00024465,7]
[339999034,1728306431234,-312.920019,0.00024465,7]
[339999035,1728306431254,-151.0,0.00024465,7]
[339999036,1728306431274,-151.0,0.00024465,7]
[339999037,1728306431296,-20754.2440731,0.00024465,3]
[339999038,1728306431317,-14310.006183,0.00024466,3]
[339999039,1728306431339,-62262.7322192,0.00024466,3]
[339999040,1728306431361,-603.965754,0.00024466,7]
[339999041,1728306431381,-603.965754,0.00024466,7]
[339999042,1728306431401,-151.0,0.00024466,7]
[339999043,1728306431421,-959.667692,0.00024466,7]
[339999044,1728306431442,-151.0,0.00024466,7]
[339999045,1728306431462,-959.667692,0.00024466,7]
[339999046,1728306431487,-151.0,0.00024466,7]
[339999047,1728306431508,-151.0,0.00024466,7]
[339999048,1728306431527,-151.0,0.00024466,7]
[339999049,1728306431547,-151.0,0.00024466,7]
[339999050,1728306431567,-810.030389,0.00024466,7]
[339999051,1728306431586,-810.030389,0.00024466,7]
[339999052,1728306431608,-303.484483,0.00024466,7]
[339999053,1728306431630,-303.484483,0.00024466,7]
[339999054,1728306431651,-151.0,0.00024466,7]
[339999055,1728306431670,-219.690443,0.00024466,7]
[339999056,1728306431691,-151.0,0.00024466,7]
[339999057,1728306431710,-219.690443,0.00024466,7]
[339999058,1728306431732,-312.920019,0.00024466,7]
[339999059,1728306431752,-151.0,0.00024466,7]
[339999060,1728306431773,-3577.50154576,0.00024467,3]
[339999061,1728306431794,-20754.2440731,0.00024467,3]
[339999062,1728306431814,-151.0,0.00024467,7]
[339999063,1728306431834,-151.0,0.00024467,7]
[339999064,1728306431860,-151.0,0.00024467,7]
[339999065,1728306431880,-151.0,0.00024467,7]
[339999066,1728306431900,-151.0,0.00024467,7]
[339999067,1728306431921,-470.323345,0.00024467,7]
[339999068,1728306431944,-470.323345,0.00024467,7]
[339999069,1728306431970,-413.068832,0.00024467,7]
[339999070,1728306431995,-413.068832,0.00024467,7]
[339999071,1728306432017,-151.0,0.00024467,7]
[339999072,1728306432040,-151.0,0.00024467,7]
[339999073,1728306432065,-151.0,0.00024467,7]
[339999074,1728306432087,-151.0,0.00024467,7]
[339999075,1728306432114,-151.0,0.00024467,7]
[339999076,1728306432138,-151.0,0.00024467,7]
[339999077,1728306432161,-151.0,0.00024467,7]
[339999078,1728306432184,-151.0,0.00024467,7]
[339999079,1728306432206,-151.0,0.00024467,7]
[339999080,1728306432301,-775.147301,0.00024467,7]
[339999081,1728306432324,-775.147301,0.00024467,7]
[339999082,1728306432346,-133.06318279,0.00024467,7]
[339999083,1728306442161,-312.920019,0.00024459,7]
[339999084,1728306442204,-151.0,0.00024459,7]
[339999085,1728306442248,-175.729121,0.00024459,7]
[339999086,1728306442291,-175.729121,0.00024459,7]
[339999087,1728306442330,-175.729121,0.00024463,7]
[339999088,1728306442366,-175.729121,0.00024463,7]
[339999089,1728306442402,-312.920019,0.00024465,7]
[339999090,1728306442437,-312.920019,0.00024465,7]
[339999091,1728306442473,-151.0,0.00024465,7]
[339999092,1728306442508,-151.0,0.00024465,7]
[339999093,1728306442544,-175.729121,0.00024465,7]
[339999094,1728306442583,-175.729121,0.00024465,7]
[339999095,1728306442623,-312.920019,0.00024466,7]
[339999096,1728306442659,-151.0,0.00024466,7]
[339999097,1728306442695,-175.729121,0.00024466,7]
[339999098,1728306442729,-175.729121,0.00024466,7]
[339999099,1728306442766,-17.93681721,0.00024467,7]
[339999100,1728306442788,-151.0,0.00024467,7]
[339999101,1728306442949,-151.0,0.00024467,7]
[339999102,1728306442969,-151.0,0.00024467,7]
[339999103,1728306442993,-151.0,0.00024467,7]
[339999104,1728306443013,-151.0,0.00024467,7]
[339999105,1728306443034,-233.660975,0.00024467,7]
[339999106,1728306443054,-159.041919,0.00024467,7]
[339999107,1728306443075,-151.0,0.00024467,7]
[339999108,1728306443095,-151.0,0.00024467,7]
[339999109,1728306443115,-151.0,0.00024467,7]
[339999110,1728306443135,-194.208668,0.00024467,7]
[339999111,1728306443157,-615.535931,0.00024467,7]
[339999112,1728306443177,-615.535931,0.00024467,7]
[339999113,1728306443197,-615.535931,0.00024467,7]
[339999114,1728306443217,-615.535931,0.00024467,7]
[339999115,1728306443237,-468.999288,0.00024467,3]
[339999116,1728306443257,-468.999288,0.00024467,3]
[339999117,1728306443277,-502.653696,0.00024467,7]
[339999118,1728306443297,-502.653696,0.00024467,7]
[339999119,1728306443317,-468.999288,0.00024467,3]
[339999120,1728306443337,-468.999288,0.00024467,3]
[339999121,1728306443357,-502.653696,0.00024467,7]
[339999122,1728306443378,-502.653696,0.00024467,7]
[339999123,1728306443398,-151.0,0.00024467,7]
[339999124,1728306443420,-151.0,0.00024467,7]
[339999125,1728306443439,-151.0,0.00024467,7]
[339999126,1728306443460,-151.0,0.00024467,7]
[339999127,1728306443488,-151.0,0.00024467,7]
[339999128,1728306443515,-151.0,0.00024467,7]
[339999129,1728306443540,-151.0,0.00024467,7]
[339999130,1728306443562,-212.451808,0.00024467,7]
[339999131,1728306443588,-151.0,0.00024467,7]
[339999132,1728306443612,-151.0,0.00024467,7]
[339999133,1728306443635,-151.0,0.00024467,7]
[339999134,1728306443656,-660.963611,0.00024467,7]
[339999135,1728306443678,-660.963611,0.00024467,7]
[339999136,1728306443700,-660.963611,0.00024467,7]
[339999137,1728306443722,-660.963611,0.00024467,7]
[339999138,1728306443744,-183.262043,0.00024467,7]
[339999139,1728306443768,-183.262043,0.00024467,7]
[339999140,1728306443792,-183.262043,0.00024467,7]
[339999141,1728306443813,-183.262043,0.00024467,7]
[339999142,1728306443835,-151.0,0.00024467,7]
[339999143,1728306443856,-151.0,0.00024467,7]
[339999144,1728306443878,-151.0,0.00024467,7]
[339999145,1728306443898,-151.0,0.00024467,7]
[339999146,1728306443920,-151.0,0.00024467,7]
[339999147,1728306443942,-151.0,0.00024467,7]
[339999148,1728306443964,-151.0,0.00024467,7]
[339999149,1728306443991,-151.0,0.00024467,7]
[339999150,1728306444016,-920.780795,0.00024467,7]
[339999151,1728306444040,-9.07250479,0.00024467,7]
[339999191,1728306632674,-159.537605,0.00023185,2]
[339999193,1728306632684,-2571.71568227,0.00024363,2]
[339999196,1728306632696,-300.0,0.00024457,2]
[339999198,1728306632708,-1431.00061831,0.00024458,3]
[339999200,1728306632719,-9339.40983288,0.00024458,3]
[339999202,1728306632730,-151.0,0.00024458,7]
[339999204,1728306632740,-479.975635,0.00024458,7]
[339999206,1728306632751,-479.975635,0.00024458,7]
[339999209,1728306632763,-151.0,0.00024458,7]
[339999211,1728306632775,-423.29101,0.00024458,7]
[339999213,1728306632787,-423.29101,0.00024458,7]
[339999215,1728306632796,-151.0,0.00024458,7]
[339999229,1728306632911,-1431.00061831,0.00024458,3]
[339999231,1728306632922,-9339.40983288,0.00024458,3]
[339999233,1728306632934,-151.0,0.00024459,7]
[339999235,1728306632945,-479.975635,0.00024459,7]
[339999237,1728306632955,-479.975635,0.00024459,7]
[339999239,1728306632964,-151.0,0.00024459,7]
[339999242,1728306632975,-697.632571,0.00024459,7]
[339999244,1728306632985,-423.29101,0.00024459,7]
[339999246,1728306632997,-697.632571,0.00024459,7]
[339999247,1728306633006,-423.29101,0.00024459,7]
[339999248,1728306633016,-151.0,0.00024459,7]
[339999249,1728306633025,-1431.00061831,0.00024459,3]
[339999250,1728306633038,-9339.40983288,0.00024459,3]
[339999251,1728306633048,-218.65726729,0.00024459,7]
[339999252,1728306633058,-1431.00061831,0.00024463,3]
[339999253,1728306633068,-6412.92023976,0.00024463,3]
[339999254,1728306633081,-2926.48959312,0.00024463,3]
[339999255,1728306633091,-151.0,0.00024463,7]
[339999256,1728306633102,-423.29101,0.00024463,7]
[339999257,1728306633111,-423.29101,0.00024463,7]
[339999258,1728306633122,-151.0,0.00024463,7]
[339999259,1728306633132,-151.0,0.00024465,7]
[339999260,1728306633143,-479.975635,0.00024465,7]
[339999261,1728306633157,-479.975635,0.00024465,7]
[339999262,1728306633168,-151.0,0.00024465,7]
[339999263,1728306633177,-697.632571,0.00024465,7]
[339999264,1728306633187,-697.632571,0.00024465,7]
[339999265,1728306633197,-423.29101,0.00024465,7]
[339999266,1728306633208,-697.632571,0.00024465,7]
[339999267,1728306633218,-697.632571,0.00024465,7]
[339999268,1728306633228,-423.29101,0.00024465,7]
[339999269,1728306633238,-151.0,0.00024465,7]
[339999270,1728306633249,-322.51958504,0.00024466,3]
[340000350,1728306652284,-486.6,0.00024457,3]
[340000351,1728306652294,-38.76547382,0.00024466,3]
[340000352,1728306652307,-1069.71555945,0.00024466,3]
[340000353,1728306652516,-1457.86444055,0.00024466,3]
[340000354,1728306652792,-7881.54539233,0.00024466,3]
[340000355,1728306652804,-151.0,0.00024466,7]
[340000356,1728306652817,-151.0,0.00024466,7]
[340000357,1728306652828,-479.975635,0.00024466,7]
[340000358,1728306652839,-479.975635,0.00024466,7]
[340000359,1728306652849,-479.975635,0.00024466,7]
[340000360,1728306652858,-479.975635,0.00024466,7]
[340000361,1728306652868,-151.0,0.00024466,7]
[340000362,1728306652878,-499.15206767,0.00024466,7]
[340000363,1728306699934,157.669358,0.00018,2]
[340000369,1728307559101,-161.515091,0.00018,2]
[340000370,1728307559123,-227.0,0.00022,2]
[340000371,1728307559143,-227.0,0.00022192,2]
[340000372,1728307559163,-227.0,0.00023014,2]
[340000373,1728307559186,-205.44355,0.00023574,2]
[340000374,1728307559208,-231.0,0.00024164,2]
[340000375,1728307559230,-300.0,0.00024297,2]
[340000376,1728307559251,-218.6572673,0.00024298,7]
[340000377,1728307559282,-737.87970854,0.00024298,2]
[340000378,1728307627098,-197.0,0.00024297,2]
[340000379,1728307627121,-1808.33783662,0.00024298,2]
[340000384,1728307761120,-266.19374317,0.00014114,2]
[340000445,1728307839738,-13912.75354933,0.00023,2]
[340000446,1728307839751,-5346.5520864,0.00023235,2]
[340000447,1728307839761,-205.44355,0.0002371,2]
[340000448,1728307839771,-29802.29852828,0.00024298,2]
[340000449,1728307839784,-16236.62377887,0.00024298,2]
[340000450,1728307839795,-2031.05031179,0.00024365,2]
[340000480,1728307842732,-219.20091017,0.00024365,2]
[340000481,1728307842743,-500.0,0.00024465,2]
[340000482,1728307842755,-212.096226,0.00024467,7]
[340000483,1728307842766,-212.096226,0.00024467,7]
[340000484,1728307842778,-212.096226,0.00024468,7]
[340000485,1728307842789,-212.096226,0.00024468,7]
[340000486,1728307842802,-212.096226,0.00024469,7]
[340000487,1728307842813,-212.096226,0.00024469,7]
[340000488,1728307842823,-310.0,0.00024469,2]
[340000489,1728307842833,-310.0,0.00024469,2]
[340000490,1728307842845,-310.0,0.00024469,2]
[340000492,1728307842854,-310.0,0.00024469,2]
[340000493,1728307842864,-310.0,0.00024469,2]
[340000494,1728307842874,-310.0,0.00024469,2]
[340000495,1728307842884,-310.0,0.00024469,2]
[340000496,1728307842895,-310.0,0.00024469,2]
[340000497,1728307842905,-310.0,0.00024469,2]
[340000498,1728307842917,-310.0,0.00024469,2]
[340000499,1728307842927,-310.0,0.00024469,2]
[340000500,1728307842938,-310.0,0.00024469,2]
[340000501,1728307842950,-310.0,0.00024469,2]
[340000502,1728307842961,-310.0,0.00024469,2]
[340000503,1728307842973,-310.0,0.00024469,2]
[340000504,1728307842985,-310.0,0.00024469,2]
[340000505,1728307842996,-363.91918,0.00024469,2]
[340000506,1728307843006,-151.0,0.00024472,7]
[340000507,1728307843016,-200.0,0.00024472,7]
[340000508,1728307843026,-200.0,0.00024472,7]
[340000509,1728307843037,-212.096226,0.00024473,7]
[340000510,1728307843047,-212.096226,0.00024473,7]
[340000511,1728307843057,-402.122957,0.00024475,7]
[340000512,1728307843066,-151.0,0.00024475,7]
[340000513,1728307843076,-675.98714005,0.00024475,7]
[340000522,1728307872994,161.279085,0.00018,2]
[340000531,1728308730172,-161.310794,0.00018,2]
[340000532,1728308730194,-171.0,0.00022,2]
[340000533,1728308730215,-171.0,0.00022192,2]
[340000534,1728308730235,-171.0,0.00023014,2]
[340000535,1728308730257,-213.8156818,0.00023563,2]
[340000536,1728308730278,-55.98508124,0.00023589,2]
[340000537,1728308832107,-159.537605,0.00023251,2]
[340000538,1728308832131,-497.89726776,0.00023589,2]
[340000539,1728308832155,-188.615866,0.00023703,2]
[340000540,1728308832176,-306.0,0.00024,2]
[340000541,1728308832306,-173.0,0.00024164,2]
[340000542,1728308832328,-483.95522339,0.00024466,2]
[340000567,1728309031866,-177.098201,0.00022054,2]
[340000568,1728309031878,-177.098201,0.00022605,2]
[340000569,1728309031889,-177.098201,0.00023156,2]
[340000570,1728309031903,-318.767659,0.00023546,2]
[340000571,1728309031918,-303.0,0.00024466,2]
[340000572,1728309031929,-400.0,0.00024488,3]
[340000573,1728309031942,-475.99396654,0.00024506,2]
[340000574,1728309031952,-216.0,0.0002451,120]
[340000575,1728309031962,-283.944,0.00024593,2]
[340000576,1728309031972,-185.0,0.000246,2]
[340000577,1728309031982,-776.40626808,0.000246,2]
[340000578,1728309031992,-500.0,0.00024648,9]
[340000579,1728309032003,-500.0,0.00024648,9]
[340000580,1728309032014,-200.0,0.00024658,15]
[340000581,1728309032024,-660.0,0.00024658,2]
[340000582,1728309032035,-380.0,0.00024658,2]
[340000583,1728309032046,-162.2,0.0002466,3]
[340000584,1728309032057,-288.26564017,0.00024663,7]
[340000585,1728309032068,-300.0,0.00024668,2]
[340000586,1728309032079,-500.0,0.00024669,2]
[340000587,1728309032089,-300.0,0.00024669,2]
[340000588,1728309032100,-2111.31190166,0.0002467,3]
[340000589,1728309032110,-8042.26957832,0.0002467,3]
[340000590,1728309032121,-3478.78046025,0.0002467,7]
[340000591,1728309032131,-151.0,0.0002467,7]
[340000592,1728309032144,-151.0,0.0002467,7]
[340000593,1728309032155,-151.0,0.0002467,7]
[340000594,1728309032167,-2111.31190166,0.0002467,3]
[340000595,1728309032180,-8042.26957832,0.0002467,3]
[340000596,1728309032191,-486.65,0.0002467,3]
[340000597,1728309032202,-500.0,0.00024673,2]
[340000598,1728309032213,-500.0,0.00024673,2]
[340000599,1728309032230,-500.87072502,0.00024673,2]
[340000600,1728309032241,-500.0,0.00024673,2]
[340000601,1728309032252,-500.0,0.00024673,2]
[340000602,1728309032264,-500.39460453,0.00024673,2]
[340000603,1728309032276,-500.0,0.00024673,2]
[340000604,1728309032286,-500.0,0.00024673,2]
[340000605,1728309032296,-500.0,0.00024673,2]
[340000606,1728309032308,-500.0,0.00024673,2]
[340000607,1728309032319,-463.32760165,0.00024673,2]
[340000608,1728309032331,-500.0,0.00024673,2]
[340000609,1728309032340,-500.0,0.00024673,2]
[340000610,1728309032352,-150.0,0.00024673,2]
[340000611,1728309032364,-500.0,0.00024673,2]
[340000612,1728309032375,-500.50420578,0.00024673,2]
[340000613,1728309032385,-500.0,0.00024673,2]
[340000614,1728309032398,-500.0,0.00024673,2]
[340000615,1728309032412,-287.86475777,0.00024673,2]
[340000616,1728309032421,-500.0,0.00024673,2]
[340000617,1728309032431,-171.81488412,0.00024673,2]
[340000618,1728309032440,-2021.58425456,0.00024673,7]
[340000658,1728309038119,-423.23666923,0.00023549,7]
[340000669,1728309039990,-76.76333077,0.00023549,7]
[340000670,1728309040000,-201.36,0.00023549,7]
[340000671,1728309040096,-401.28194322,0.0002467,10]
[340000687,1728309043016,-624.88000006,0.00023959,2]
[340000722,1728309045971,-567.33718519,0.00023959,2]
[340000724,1728309045983,-1000.0,0.00023959,2]
[340000758,1728310026737,-162.020807,0.00018,2]
[340000759,1728310026759,-47.42943293,0.00022037,2]
[340000760,1728310039143,-143.19699307,0.00022037,2]
[340000761,1728310039165,-150.881546,0.00022054,2]
[340000762,1728310039187,-524.78450027,0.00022075,2]
[340000763,1728310044146,-275.4,0.00022075,2]
[340000768,1728310146716,10000.0,0.00010211,2]
[340000769,1728310153935,201.33467998,0.00010211,2]
[340000770,1728310153961,9798.66532002,0.00010211,2]
[340000771,1728310162537,10000.0,0.00010211,2]
[340000772,1728310169029,245.0,0.00010211,2]
[340000773,1728310169054,9755.0,0.00010211,2]
[340000774,1728310178413,10000.0,0.00010211,2]
[340000775,1728310188783,10000.0,0.00010211,2]
[340000776,1728310208224,1962.452951,0.00010211,2]
[340000789,1728310234801,-1348.2816197,0.00021559,2]
[340000790,1728310234813,-12024.86817973,0.00022074,2]
[340000791,1728310234860,-2345.24790027,0.00022074,2]
[340000792,1728310234870,-190.626426,0.00022097,2]
[340000793,1728310234882,-190.626426,0.00022158,2]
[340000794,1728310234893,-3879.60244831,0.00022179,2]
[340000795,1728310234903,-190.626426,0.00022218,2]
[340000796,1728310234915,-300.0,0.00022271,2]
[340000797,1728310234927,-300.0,0.00022271,2]
[340000798,1728310234937,-604.98514662,0.00022272,7]
[340000799,1728310234948,-11103.66529661,0.00022272,2]
[340000833,1728310240202,-1268.9,0.00022272,2]
[340000861,1728310246106,-12527.43470339,0.00022272,2]
[340000862,1728310246121,-190.626426,0.00022279,2]
[340000863,1728310246135,-190.626426,0.00022339,2]
[340000864,1728310246144,-190.626426,0.00022399,2]
[340000865,1728310246154,-150.881546,0.00022421,2]
[340000866,1728310246163,-190.626426,0.0002246,2]
[340000867,1728310246315,-190.626426,0.0002252,2]
[340000868,1728310246334,-190.626426,0.00022581,2]
[340000869,1728310246347,-190.626426,0.00022641,2]
[340000870,1728310246361,-190.626426,0.00022702,2]
[340000871,1728310246377,-194.6982611,0.0002272,2]
[340000872,1728310246387,-190.626426,0.00022762,2]
[340000873,1728310246399,-150.881546,0.00022789,2]
[340000874,1728310246410,-190.626426,0.00022823,2]
[340000875,1728310246420,-190.626426,0.00022883,2]
[340000876,1728310246432,-190.626426,0.00022943,2]
[340000877,1728310246443,-307.20337677,0.00023,2]
[340000878,1728310246454,-150.0,0.00023,2]
[340000879,1728310246464,-500.0,0.00023,2]
[340000880,1728310246475,-190.626426,0.00023004,2]
[340000881,1728310246485,-190.626426,0.00023064,2]
[340000882,1728310246497,-190.626426,0.00023125,2]
[340000883,1728310246508,-150.881546,0.00023156,2]
[340000884,1728310246520,-190.626426,0.00023185,2]
[340000885,1728310246531,-599.6483962,0.0002337,2]
[340000886,1728310246541,-159.053089,0.00023609,2]
[340000887,1728310246550,-159.053089,0.00023618,2]
[340000888,1728310246561,-159.053089,0.00023628,2]
[340000889,1728310246573,-159.053089,0.00023638,2]
[340000890,1728310246583,-159.053089,0.00023648,2]
[340000891,1728310246594,-159.053089,0.00023658,2]
[340000892,1728310246603,-159.053089,0.00023668,2]
[340000893,1728310246612,-159.053089,0.00023677,2]
[340000894,1728310246622,-159.053089,0.00023687,2]
[340000895,1728310246633,-159.053089,0.00023697,2]
[340000896,1728310246642,-159.053089,0.00023707,2]
[340000897,1728310246651,-159.053089,0.00023717,2]
[340000898,1728310246659,-159.053089,0.00023727,2]
[340000899,1728310246670,-599.6483962,0.0002387,2]
[340000900,1728310246680,-420.0,0.00024194,2]
[340000901,1728310246690,-1000.0,0.0002437,2]
[340000902,1728310246702,-599.6483962,0.0002437,2]
[340000903,1728310246714,-193.38070615,0.00024388,2]
[340000904,1728310246724,-721.57499357,0.00024469,2]
[340000905,1728310246735,-721.57499355,0.00024489,2]
[340000906,1728310246746,-420.0,0.00024498,2]
[340000907,1728310246757,-721.57499355,0.0002451,2]
[340000908,1728310246767,-5332.266619,0.0002452,2]
[340000909,1728310246778,-721.57499355,0.0002453,2]
[340000910,1728310246789,-721.57499355,0.0002455,2]
[340000911,1728310246800,-556.236,0.00024562,2]
[340000912,1728310246809,-6454.57436789,0.00024568,7]
[340000913,1728310246818,-33120.54534602,0.00024568,7]
[340000914,1728310246828,-29627.1687144,0.00024569,3]
[340000915,1728310246838,-151.0,0.00024569,7]
[340000916,1728310246849,-151.0,0.00024569,7]
[340000917,1728310246859,-199.37259,0.00024569,7]
[340000918,1728310246869,-151.0,0.00024569,7]
[340000919,1728310246881,-151.0,0.00024569,7]
[340000920,1728310246891,-199.37259,0.00024569,7]
[340000921,1728310246901,-235.963991,0.00024569,7]
[340000922,1728310246911,-151.0,0.00024569,7]
[340000923,1728310246921,-235.963991,0.00024569,7]
[340000924,1728310246931,-852.6014379,0.0002457,2]
[340000925,1728310246940,-151.0,0.0002457,7]
[340000926,1728310246949,-1228.348421,0.0002457,7]
[340000927,1728310246960,-1228.348421,0.0002457,7]
[340000928,1728310246970,-151.0,0.0002457,7]
[340000929,1728310246979,-151.0,0.0002457,7]
[340000930,1728310246988,-241.986481,0.0002457,7]
[340000931,1728310246998,-241.986481,0.0002457,7]
[340000932,1728310247008,-879.992705,0.0002457,7]
[340000933,1728310247017,-151.0,0.0002457,7]
[340000934,1728310247027,-151.0,0.0002457,7]
[340000935,1728310247036,-151.0,0.0002457,7]